Cogmind - Beta 13 @@@ ROGUE MODE // 2024.04.07 @ 06:43:34 Player: f_ Result: Destroyed by S-10 Pest with Light Assault Rifle Performance ------------- Evolutions (1) 500 Regions Visited (2) 400 Robots Destroyed (0) 0 Value Destroyed (0) 0 Prototype IDs (2) 40 Alien Tech Used (0) 0 Bonus (200) 200 TOTAL SCORE: 1140 Bonus ------- Pacifist 200 Cogmind --------- Core Integrity 0/400 Matter 114/300 Energy 98/100 System Corruption 0% Temperature Cool (4) Movement Flying (32) Location -9/Materials Parts ------- > --- POWER (1) -------- (None) > --- PROPULSION (4) --- Improved VTOL Module Improved VTOL Module > --- UTILITY (2) ------ Structural Scanner Signal Interpreter > --- WEAPON (2) ------- (None) > --- INVENTORY (5) ---- Light Nuclear Core Light Nuclear Core Faulty Improved VTOL Module Improved VTOL Module Heavy Hammer Peak State ------------ > --- POWER ------------ (None) > --- PROPULSION ------- Improved VTOL Module Improved VTOL Module > --- UTILITY ---------- Structural Scanner Signal Interpreter > --- WEAPON ----------- (None) > --- INVENTORY -------- Improved VTOL Module Improved VTOL Module Heavy Hammer [Rating: 11] Favorites ----------- Power Cooled Ion Engine Engine Cooled Ion Engine Propulsion Improved VTOL Module Flight Unit Improved VTOL Module Utility Structural Scanner Device Structural Scanner Processor Signal Interpreter Weapon None Build | -11 -10 -9 ------- Run | Yrd Mat Mat Slots Evolved 2 | . . 2 Power . | . . . Propulsion 2 | . . 2 Utility . | . . . Weapon . | . . . Parts Attached 5 | . 2 3 Power 1 | . . 1 Engine 1 | . . 1 Core . | . . . Reactor . | . . . Propulsion 2 | . . 2 Treads . | . . . Leg . | . . . Wheel . | . . . Hover . | . . . Flight 2 | . . 2 Utility 2 | . 2 . Device 1 | . 1 . Storage . | . . . Processor 1 | . 1 . Hackware . | . . . Protection . | . . . Artifact . | . . . Weapon . | . . . Energy Gun . | . . . Energy Cannon . | . . . Ballistic Gun . | . . . Ballistic Cannon . | . . . Launcher . | . . . Special Weapon . | . . . Impact Weapon . | . . . Slashing Weapon . | . . . Piercing Weapon . | . . . Special Melee Weapon . | . . . Unidentified Prototypes 2 | . . 2 Parts Lost . | . . . Power . | . . . Propulsion . | . . . Utility . | . . . Weapon . | . . . Highest Loss Streak . | . . . To Critical Strikes . | . . . Average Slot Usage (%) 26 | . 14 30 Flight 6 | . . 8 Device 10 | . 10 11 Processor 9 | . 3 11 Naked Turns 16 | . 16 . Heaviest Build 1 | . 1 1 Greatest Support 10 | 3 3 10 Greatest Overweight (x) . | . . . Average Overweight (x) . | . . . Largest Inventory Capacity 5 | 5 5 5 Average Capacity 5 | 5 5 5 Most Carried 5 | . . 5 Average Carried 1 | . . 1 Final Capacity 5 | 5 5 5 Final Carried 5 | . . 5 Class Distribution -------------------- 68% | Mutant 31% | Sprinter Dominant Class ---------------- Mutant | -10/Materials Mutant | -9/Materials Resources | -11 -10 -9 ----------- Run | Yrd Mat Mat Matter Collected 59 | 48 . 11 Remotely . | . . . Salvage Created . | . . . Parts . | . . . Haulers Intercepted . | . . . Recyclers Shooed . | . . . Parts Field Recycled . | . . . Retrieved Matter . | . . . Parts Self-Destructed . | . . . Prevented . | . . . Kills | -11 -10 -9 ------- Run | Yrd Mat Mat Combat Hostiles Destroyed . | . . . Classes Destroyed . | . . . Best Kill Streak . | . . . Combat Bots Only . | . . . Max Kills in Single Turn . | . . . Gunslinging . | . . . Exploded . | . . . Melee . | . . . Uniques/NPCs Destroyed . | . . . Combat | -11 -10 -9 -------- Run | Yrd Mat Mat Hostile Shots Fired 92 | . 1 91 Missed 41 | . . 41 Damage Taken 488 | . 12 476 Core 418 | . 12 406 Absorbed by Shields . | . . . Core Remaining (%) 97 | 100 95 . Volleys Fired . | . . . Largest . | . . . Hottest . | . . . Shots Fired . | . . . Gun . | . . . Cannon . | . . . Launcher . | . . . Special . | . . . Kinetic . | . . . Thermal . | . . . Explosive . | . . . Electromagnetic . | . . . Robot Hit Streak . | . . . Robot Miss Streak . | . . . Penetration Max . | . . . Secondary Targets . | . . . Shots Hit Robots . | . . . Core Hits . | . . . Critical Kills . | . . . Critical Parts Destroyed . | . . . Critical Strikes . | . . . Melee Attacks . | . . . Impact . | . . . Slashing . | . . . Piercing . | . . . Sneak Attacks . | . . . Combat Hostiles . | . . . Follow-up Attacks . | . . . Damage Inflicted 11 | . . 11 Guns . | . . . Cannons . | . . . Explosions . | . . . Melee . | . . . Ramming 11 | . . 11 Kinetic . | . . . Thermal . | . . . Explosive . | . . . Electromagnetic . | . . . Impact . | . . . Slashing . | . . . Piercing . | . . . Highest Corruption . | . . . Average Corruption . | . . . Corruption Purged . | . . . Corruption Blocked . | . . . Overload Shots . | . . . Overflow Damage . | . . . Projectiles . | . . . Explosions . | . . . Melee . | . . . Knockbacks . | . . . Impact . | . . . Kinetic . | . . . Secondary . | . . . Self-Inflicted Damage 5 | . . 5 Shots . | . . . Rammed 2 | . . 2 Targets Rammed 2 | . . 2 Kicked . | . . . Crushed . | . . . Highest Temperature . | . . . Average Temperature . | . . . Received Heat Transfer 48 | . 6 42 Siege Activations . | . . . Robots Corrupted . | . . . Combat Hostiles . | . . . Parts Fried . | . . . Impact Corruptions . | . . . Robots Melted . | . . . Combat Hostiles . | . . . Parts Melted . | . . . Heat Transferred . | . . . Parts Sabotaged . | . . . Parts Stolen . | . . . Parts Stripped . | . . . Power Chain Reactions . | . . . Alert | -11 -10 -9 ------- Run | Yrd Mat Mat Peak Influence 149 | . 36 149 Initial 14 | . . 14 Average 37 | . 24 45 Maximum Alert Level . | . . . Low Security (%) 100 | 100 100 100 Level 1 . | . . . Level 2 . | . . . Level 3 . | . . . Level 4 . | . . . Level 5 . | . . . High Security . | . . . Max Security . | . . . Squads Dispatched 6 | . 2 4 Investigation 4 | . 1 3 Extermination . | . . . Reinforcement 2 | . 1 1 Assault . | . . . Garrison . | . . . Intercept . | . . . Searches Triggered . | . . . Construction Impeded . | . . . Haulers Reinforced . | . . . Active Scanning Responses . | . . . Cargo Convoy Interrupts . | . . . Stealth | -11 -10 -9 --------- Run | Yrd Mat Mat Distress Signals 1 | . . 1 Communications Jammed . | . . . Distress Signals . | . . . Times Spotted 25 | . 5 20 Peak Tracking Total 14 | . 5 14 Tactical Retreats 2 | . . 2 Traps | -11 -10 -9 ------- Run | Yrd Mat Mat Traps Triggered 2 | . 1 1 Indirectly . | . . . Trap Hack Attempts . | . . . Triggered . | . . . Disarmed . | . . . Reprogrammed . | . . . Reused . | . . . Traps Extracted . | . . . Installed . | . . . Triggered . | . . . Machines | -11 -10 -9 ---------- Run | Yrd Mat Mat Machines Disabled . | . . . Max in Single Turn . | . . . Machines Repaired . | . . . Machines Dismantled . | . . . Machines Sabotaged . | . . . Overloaded Fab Kills . | . . . Hacking | -11 -10 -9 --------- Run | Yrd Mat Mat Machines Accessed 4 | . 1 3 Terminals 4 | . 1 3 Fabricators . | . . . Repair Stations . | . . . Recycling Units . | . . . Scanalyzers . | . . . Garrison Access . | . . . Total Hacks 13 | . 3 10 Successful 3 | . 1 2 Failed 10 | . 2 8 Catastrophic 3 | . 1 2 Database Lockouts . | . . . Manual 13 | . 3 10 Terminals 13 | . 3 10 Fabricators . | . . . Repair Stations . | . . . Recycling Units . | . . . Scanalyzers . | . . . Garrison Access . | . . . Terminal Hacks 1 | . . 1 Terminal Index 1 | . . 1 Fabricator Hacks . | . . . Repair Station Hacks . | . . . Recycling Unit Hacks . | . . . Scanalyzer . | . . . Garrison Access Hacks . | . . . Unauthorized Hacks 2 | . 1 1 Terminals 2 | . 1 1 Assimilate 1 | . 1 . Botnet 1 | . . 1 Fabricators . | . . . Repair Stations . | . . . Recycling Units . | . . . Scanalyzers . | . . . Garrison Access . | . . . Data Cores Recovered . | . . . Used . | . . . Hacking Detections 4 | . 1 3 Full Trace Events 4 | . 1 3 Feedback Events . | . . . Feedback Blocked . | . . . Robot Schematics Acquired . | . . . Robots Built . | . . . Authchips . | . . . Time . | . . . Total Robot Build Rating . | . . . Part Schematics Acquired . | . . . Parts Built . | . . . Authchips . | . . . Time . | . . . Total Part Build Rating . | . . . Parts Repaired . | . . . Time . | . . . Parts Recycled . | . . . Recycled Matter . | . . . Retrieved Matter . | . . . Retrieved Components . | . . . Parts Scanalyzed . | . . . Part Schematics Acquired . | . . . Parts Damaged . | . . . Bothacking | -11 -10 -9 ------------ Run | Yrd Mat Mat Used RIF Installer . | . . . Robots Hacked . | . . . Non-combat . | . . . Combat . | . . . Robot Hacks Applied . | . . . Relay Couplers Released . | . . . Fabnet Peak Effective % . | . . . Robots Rewired . | . . . Allies Hacked . | . . . Hacks Repelled . | . . . Allies | -11 -10 -9 -------- Run | Yrd Mat Mat Total Allies . | . . . Largest Group . | . . . Highest-Rated Group . | . . . Highest-Rated Ally . | . . . Total Orders . | . . . Ally Attacks . | . . . Total Damage . | . . . Kills . | . . . Allies Corrupted . | . . . Allies Melted . | . . . Intel | -11 -10 -9 ------- Run | Yrd Mat Mat Robot Analysis Total . | . . . Derelict Logs Recovered . | . . . Drone Launches . | . . . Drone Recoveries . | . . . Exploration | -11 -10 -9 ------------- Run | Yrd Mat Mat Turns Passed 180 | 9 48 123 Spaces Moved 371 | 18 89 264 Core 253 | 18 89 146 Treads . | . . . Legs . | . . . Wheels . | . . . Hover . | . . . Flight 118 | . . 118 Fastest Speed 32 | 50 50 32 Average Speed 44 | 50 50 41 Slowest Speed 50 | 50 50 50 Overloaded Moves . | . . . Propulsion Burnouts . | . . . Robots Hopped 7 | . . 7 Cave-ins Triggered . | . . . Exploration Rate (%) 21 | 3 31 30 Regions Visited 2 Branch Regions . Pre-discovered Areas . | . . . Known Exits Taken 1 | . 1 . Unknown Exits Taken 1 | 1 . . Scrap Searched . | . . . Spaces Dug . | . . . Terrain Destroyed . | . . . Melee . | . . . Projectile . | . . . AOE . | . . . Terrain Rammed . | . . . Walls Destroyed . | . . . Machines Disabled . | . . . Actions | -11 -10 -9 --------- Run | Yrd Mat Mat Total 375 | 17 90 268 Wait . | . . . Move 355 | 17 88 250 Hop 7 | . . 7 Pick Up 5 | . . 5 Fast Attach 5 | . 2 3 Attach . | . . . Detach . | . . . Swap . | . . . Drop 1 | . . 1 Fire . | . . . Melee . | . . . Ram 2 | . . 2 Kick . | . . . Crush . | . . . Escape Stasis . | . . . Rewire . | . . . Trap . | . . . Miscellaneous . | . . . Route ------- -11/Scrapyard -10/Materials (discovered 2 exits: *Mat / [*Min]) -9/Materials History --------- Turn | Location | Event 3 | -11/Scrapyard | Discovered new exit (range 15) 10 | -11/Scrapyard | Entered Materials 15 | -10/Materials | Discovered new exit (range 14) 50 | -10/Materials | Discovered new exit (range 15) 57 | -10/Materials | Identified exit to Materials 58 | -10/Materials | Entered another Materials area 58 | -9/Materials | Evolved 2 slots: Propulsion x2 139 | -9/Materials | Core integrity fell below 50% 150 | -9/Materials | Core integrity fell below 20% 181 | -9/Materials | Destroyed by S-10 Pest with Light Assault Rifle Last Messages --------------- investigation squad. 00118_ Slammed into G-34 Mercenary. 00127_ K-01 Serf collects debris. 00128_ O-16 Technician sends out distress signal. 00128_ O-16 Technician: "IFF HANDSHAKE FAILED. SECURING TERMINAL." 00134_ ALERT: Hostiles spotted, dispatching reinforcements to Terminal M006. 00137_ Acquired Prototype Flight Unit. 00137_ Identified Imp. VTOL Module. 00138_ Acquired Imp. VTOL Module. 00140_ Acquired Faulty Imp. VTOL Module. 00141_ Acquired Imp. VTOL Module. 00143_ Acquired Lgt. Nuclear Core. 00144_ S-10 Pest destroyed. 00168_ Acquired Lgt. Nuclear Core. 00169_ Acquired 11 matter. 00171_ S-10 Pest destroyed. 00171_ R-06 Scavenger collects Flight Unit. Map ----- +----------------------------------------------------+ | ?????????????????????????????????????????????????? | | ?????????????????????????????????????????????????? | | ?????????????????????????????????????????????????? | | ?????????????????????????????????????????????????? | | ?????????????????????????????????????????????????? | | ?????????????????????????????????????????????????? | | ?????????????????????????????????????????????????? | | ?????????????????????????????????????????????????? | | ?????????????????????????????????????????????????? | | ?????????????????????????????????????????????????? | | ?????????????????????????????????????????????????? | | ?????????????????????????????????????????????????? | | ?????????????????????????????????????????????????? | | ?????????????????????????????????????????????????? | | ?????????????????????????????????????????????????? | | ?????????????????????????????????????????????????? | | ?????????????????????????????????????????????????? | | ?????????????????????????????????????????????????? | | ?????????????????????????????????????????????????? | | ????????????????########?????????????????????????? | | ????????????????# #?????????????????????????? | | ????????????????# #?????????????????????????? | | ????????????????# #?????????????????????????? | | ????????????????# #???????????????? ???????? | | ????????????????# ####+########## ???????? | | ????????????????#!= # @ ???????? | | ????????????????#!= + T ???????? | | ????????????????#! # ???????? | | ????????????????# ### ###### ?????????? | | ????????????????# #?# #????????????????? | | ????????????????# #?# #????????????????? | | ??? ????????????# #?#s #????????????????? | | ??# ????#?????# #?# k #????????????????? | | ??# ???? ????#########?# #????????????????? | | ??# ????"" ?????????????# #????????????????? | | ??# ????"" ?????????????# #????????????????? | | ??# +????" ?############ #????????????????? | | ??# #????? # #????????????????? | | ??# #?????? # #????????????????? | | ??# #??????? + #????????????????? | | ??# #????????# ###############????????????????? | | ??# #????????# #??????????????????????????????? | | ### ##???????# #??????????????????????????????? | | # |######### #####??????????????????????????? | | ]]#??????????????????????????? | | ]]#??????????????????????????? | | #??????????????????????????? | | # ######### =#??????????????????????????? | | ## ##???????# = *#??????????????????????????? | | ?# #????????# =%[ *#??????????????????????????? | +----------------------------------------------------+ Best States ------------- Heat Dissipation 28 Energy Generation 5 Energy Capacity 100 Matter Stores 148 Matter Capacity 300 Sight Range 16 Terrain Scan Density 10 Evasion (%) 63 Item Schematics ----------------- None Robot Schematics ------------------ None Fabricated ------------ Nothing Alien Tech Used ----------------- None Achievements -------------- None Challenges ------------ None Game ------ Seed BiocellFocalCarapace Manual? 0 Play Time 00:05:03 Cumulative 165.8 hours Start 2024.04.07 @ 06:38:49 End 2024.04.07 @ 06:43:34 Sessions 1 Manual Loads 0 Difficulty Rogue Special Mode None Game No. 134 Rogue 129 Adventurer 0 Explorer 5 Win Type - Total 4 Types 1/0/1/2/0/0/0/0/0 Lore% 52 Gallery% 61 Achievement% 47 Wizard Run 0 Options --------- Layout 1 ASCII 0 Keyboard 0 Movement Mouse Keybinds 0 Fullscreen 2 Font 24/Tamsyn Map View 50x35 Zoom Use 0% Tactical HUD 1 Map Filters NONE Filters NONE Steam 1 RUN: 92416482-df8e-4bdb-a5a8-33ac0254203c